bitfinex-derivatives/quotes_SOLF0:USTF0_20240912
["timestamp","ask_amount","ask_price","bid_price","bid_amount"]
[1726132753586,11.36,134.89,134.85,6.20417628]
[1726132753787,3.3361,134.87,134.84,3.3367]
[1726132753980,3.3361,134.87,134.85,6.20417628]
[1726132754181,3.3361,134.87,134.84,3.3367]
[1726132754382,3.3361,134.87,134.85,6.20417628]
[1726132754582,3.3362,134.86,134.83,3.3368]
[1726132754783,3.3362,134.86,134.84,6.20422694]
[1726132754988,3.3362,134.86,134.82,4.0752]
[1726132755292,3.3362,134.86,134.83,6.20427015]
[1726132755704,3.3362,134.86,134.82,7.4123]
[1726132755997,3.3362,134.86,134.83,9.54118643]
[1726132756187,3.3362,134.86,134.84,6.20428643]
[1726132756381,3.3362,134.86,134.83,3.3369]
[1726132756692,3.3362,134.86,134.84,6.20428523]
[1726132756889,3.3362,134.86,134.83,3.3369]
[1726132757088,3.3362,134.86,134.84,6.20428523]
[1726132757287,3.3362,134.86,134.83,3.3369]
[1726132757488,3.3362,134.86,134.84,6.20429066]
[1726132757687,3.3362,134.86,134.83,3.3369]
[1726132758089,3.3362,134.86,134.84,6.20429066]
[1726132758295,3.3362,134.86,134.83,3.3369]
[1726132758496,3.3362,134.86,134.84,6.20429066]
[1726132758687,3.3362,134.86,134.83,3.3369]
[1726132758894,3.3362,134.86,134.84,6.20429066]
[1726132759195,3.3362,134.86,134.83,3.3369]
[1726132759393,3.3362,134.86,134.84,6.20429066]
[1726132759593,3.3362,134.86,134.83,3.3369]
[1726132759795,3.3362,134.86,134.84,6.2042364]
[1726132759991,3.3362,134.86,134.83,3.3369]
[1726132760190,3.3362,134.86,134.84,6.2042364]
[1726132760391,3.3362,134.86,134.83,3.3369]
[1726132760695,3.3362,134.86,134.84,6.2042364]
[1726132760996,3.3362,134.86,134.83,3.3369]
[1726132761197,3.3362,134.86,134.84,6.2042364]
[1726132761493,3.3362,134.86,134.83,3.3369]
[1726132761695,3.3362,134.86,134.84,6.2042364]
[1726132761897,3.3362,134.86,134.83,3.3369]
[1726132762191,3.3362,134.86,134.84,6.2042364]
[1726132762396,3.3362,134.86,134.83,3.3369]
[1726132762787,3.3362,134.86,134.84,6.2042364]
[1726132762987,3.3362,134.86,134.83,3.3369]
[1726132763182,3.3362,134.86,134.84,6.2042364]
[1726132763382,3.3362,134.86,134.83,3.3369]
[1726132763792,3.3362,134.86,134.84,6.2042364]
[1726132763989,3.3362,134.86,134.83,3.3369]
[1726132764392,3.3362,134.86,134.84,6.2042364]
[1726132764592,3.3362,134.86,134.83,3.3369]
[1726132764799,3.3362,134.86,134.84,6.20418215]
[1726132765099,3.3362,134.86,134.83,3.3369]
[1726132765303,3.3362,134.86,134.84,6.20417793]
[1726132765497,3.3361,134.87,134.84,3.3367]
[1726132766302,3.3361,134.87,134.85,6.20412257]
[1726132766503,3.3361,134.87,134.84,3.3367]
[1726132766998,3.3361,134.87,134.85,6.20390557]
[1726132767199,3.3359,134.88,134.82,15.4352]
[1726132767497,3.3359,134.88,134.84,11.36]
[1726132767701,3.3359,134.88,134.85,6.20378059]
[1726132767905,3.3355,134.89,134.84,11.36]
[1726132768213,3.3355,134.89,134.85,6.20370542]
[1726132768397,3.3355,134.89,134.86,9.53980542]
[1726132768598,3.3355,134.89,134.86,3.3361]
[1726132769307,3.3358,134.88,134.86,3.3361]
[1726132772202,11.36,134.9,134.86,3.3361]
[1726132772409,3.3356,134.89,134.86,3.3361]
[1726132775496,3.3356,134.89,134.87,6.20366493]
[1726132775716,3.3356,134.89,134.86,3.3361]
[1726132776012,3.3356,134.89,134.87,6.20353997]
[1726132776205,3.3356,134.89,134.86,3.3361]
[1726132776404,3.3356,134.89,134.87,6.20352369]
[1726132776606,3.3356,134.89,134.86,3.3361]
[1726132776906,3.3356,134.89,134.87,6.20358336]
[1726132777212,3.3356,134.89,134.86,3.3361]
[1726132777414,3.3356,134.89,134.87,6.20358336]
[1726132777601,3.3356,134.89,134.86,3.3361]
[1726132777996,3.3356,134.89,134.87,6.20364042]
[1726132778207,3.3356,134.89,134.86,3.3361]
[1726132778607,3.3356,134.89,134.87,6.20358226]
[1726132778805,3.3356,134.89,134.86,3.3361]
[1726132779007,3.3356,134.89,134.87,6.20358226]
[1726132779207,3.3356,134.89,134.86,3.3361]
[1726132779406,3.3356,134.89,134.87,6.20364474]
[1726132779610,3.3356,134.89,134.86,3.3361]
[1726132779807,3.3356,134.89,134.87,6.20369899]
[1726132780007,3.3356,134.89,134.86,3.3361]
[1726132780410,3.3358,134.88,134.87,6.20369899]
[1726132780615,3.3358,134.88,134.85,3.3364]
[1726132780819,3.3358,134.88,134.86,6.20386305]
[1726132781012,3.3358,134.88,134.85,3.3364]
[1726132781214,3.3358,134.88,134.86,6.20373807]
[1726132781527,3.3358,134.88,134.85,3.3364]
[1726132781707,3.3358,134.88,134.86,6.20386848]
[1726132781909,3.3358,134.88,134.85,3.3364]
[1726132782104,3.3358,134.88,134.86,6.20383723]
[1726132782310,3.3358,134.88,134.85,3.3364]
[1726132782615,3.3358,134.88,134.86,6.20383723]
[1726132782919,3.3358,134.88,134.85,3.3364]
[1726132783102,3.3358,134.88,134.86,6.20397697]
[1726132783307,3.3358,134.88,134.85,3.3364]
[1726132783508,3.3358,134.88,134.86,6.20424823]
[1726132783704,3.3358,134.88,134.85,3.3364]
[1726132785818,3.3358,134.88,134.86,6.20419398]
[1726132786007,3.3358,134.88,134.85,3.3364]
[1726132786322,3.3358,134.88,134.86,6.20419398]
[1726132786523,3.3358,134.88,134.85,3.3364]
[1726132787025,3.3358,134.88,134.86,6.20419398]
[1726132787322,3.3358,134.88,134.85,3.3364]
[1726132787519,3.3356,134.89,134.86,6.20406899]
[1726132787822,3.3356,134.89,134.86,3.3362]
[1726132796026,3.3356,134.89,134.87,6.20389684]
[1726132796323,3.3356,134.89,134.86,3.3362]
[1726132796526,3.3356,134.89,134.87,6.20384355]
[1726132796723,3.3356,134.89,134.86,3.3362]
[1726132804133,3.3353,134.9,134.87,3.3359]
[1726132804335,12.7591,134.92,134.85,11.36]
[1726132804536,3.3351,134.91,134.88,3.3355]
[1726132804844,11.36,134.92,134.85,11.36]
[1726132805034,2.7028,134.97,134.86,27.45688339]
[1726132805229,3.3347,134.93,134.88,11.36]
[1726132805539,3.3347,134.93,134.89,6.20298473]
[1726132805749,3.3344,134.94,134.91,3.335]
[1726132805939,4.0264,134.97,134.89,11.36]
[1726132805940,11.36,134.96,134.89,11.36]
[1726132806145,11.36,134.96,134.9,6.202242]
[1726132806446,3.3341,134.95,134.91,3.3348]
[1726132809131,3.3341,134.95,134.92,3.3347]
[1726132813942,3.3345,134.93,134.9,3.3351]
[1726132814139,11.36,134.92,134.87,4.0571]
[1726132814331,11.36,134.92,134.87,2.626]
[1726132814542,3.3351,134.91,134.88,3.3357]
[1726132815040,11.36,134.92,134.88,3.3357]
[1726132815232,14.6948,134.92,134.89,3.3355]
[1726132815437,3.3348,134.92,134.89,3.3355]
[1726132815839,3.3346,134.93,134.9,3.3353]
[1726132816835,1.3625,135.0,134.92,11.36]
[1726132817036,1.14862137,134.99,134.94,11.36]
[1726132817232,11.36,135.0,134.94,11.36]
[1726132817443,4.48192755,134.99,134.95,3.334]
[1726132817738,3.3332,134.99,134.95,3.334]
[1726132818343,3.3333,134.98,134.95,3.334]
[1726132824241,3.3333,134.98,134.94,14.6942]
[1726132825943,11.36,135.0,134.94,14.6942]
[1726132826548,3.3334,134.98,134.94,14.6942]
[1726132827755,11.36,134.98,134.93,3.3344]
[1726132828055,11.36,134.97,134.92,1.3361]
[1726132828659,3.3342,134.95,134.92,4.6708]
[1726132828845,3.3342,134.95,134.92,1.3361]
[1726132829246,3.3344,134.94,134.91,3.3349]
[1726132834947,3.3341,134.95,134.91,3.3349]
[1726132837150,11.36,134.97,134.91,3.3349]
[1726132837457,11.36,134.95,134.9,3.3351]
[1726132837661,11.36,134.93,134.88,4.0556]
[1726132837854,11.36,134.93,134.88,2.6794]
[1726132838653,3.3348,134.92,134.89,3.3354]
[1726132840761,3.3348,134.92,134.9,3.3352]
[1726132844558,3.3346,134.93,134.9,3.3352]
[1726132844860,2.7597,134.99,134.91,11.36]
[1726132845061,2.7597,134.99,134.93,11.36]
[1726132845251,11.36,134.99,134.93,14.98943634]
[1726132845956,3.3335,134.98,134.94,3.3342]
[1726132848275,3.3331,134.99,134.95,14.6939]
[1726132852073,3.3333,134.98,134.95,14.6939]
[1726132852466,11.36,135.0,134.94,4.6925]
[1726132853067,103.20516583,135.02,134.94,4.6925]
[1726132853263,11.36,135.0,134.94,4.6925]
[1726132853573,3.3335,134.98,134.94,4.6925]
[1726132856878,3.3331,134.99,134.95,14.6939]
[1726132857973,3.3333,134.98,134.95,14.6939]
[1726132858777,3.3331,134.99,134.96,3.3337]
[1726132858975,103.20516583,135.02,134.96,11.36]
[1726132859577,1.14790351,135.01,134.96,14.6936]
[1726132860984,3.3331,134.99,134.96,14.6936]
[1726132863181,3.3333,134.98,134.95,11.36]
[1726132863591,11.36,135.01,134.95,11.36]
[1726132863890,3.3331,134.99,134.96,3.3336]
[1726132864182,103.20516583,135.02,134.97,11.36]
[1726132864380,3.3326,135.01,134.98,3.3331]
[1726132866075,3.3325,135.02,134.97,11.36]
[1726132866271,3.3325,135.02,134.99,11.36]
[1726132869190,3.3326,135.01,134.99,11.36]
[1726132869389,14.0015,135.04,134.99,11.36]
[1726132869688,3.3327,135.01,134.99,11.36]
[1726132869887,3.3327,135.01,134.97,14.6934]
[1726132870191,11.36,135.02,134.96,11.36]
[1726132870392,3.3332,134.99,134.95,11.36]
[1726132871785,3.3329,135.0,134.96,11.36]
[1726132871989,11.36,135.03,134.98,11.36]
[1726132872487,3.3327,135.01,134.98,11.36]
[1726132873988,3.3327,135.01,134.98,14.6933]
[1726132875596,2.6415,135.04,134.98,11.36]
[1726132875892,1.327,135.04,134.98,11.36]
[1726132876089,3.3324,135.02,134.98,14.6931]
[1726132876488,11.36,135.05,134.98,14.6931]
[1726132876489,3.3326,135.01,134.98,14.6931]
[1726132877280,11.36,135.03,134.98,11.36]
[1726132879490,3.3327,135.01,134.98,11.36]
[1726132882696,3.3328,135.0,134.98,11.36]
[1726132883700,3.3328,135.0,134.96,14.6937]
[1726132884291,11.36,135.03,134.95,3.3339]
[1726132884491,11.36,135.02,134.95,3.3339]
[1726132884690,11.36,135.02,134.96,11.36]
[1726132884891,3.3332,134.99,134.96,11.36]
[1726132885399,3.3332,134.99,134.96,14.6938]
[1726132885992,3.3333,134.98,134.96,11.36]
[1726132887499,3.3335,134.97,134.94,7.3408]
[1726132887704,3.3335,134.97,134.94,18.7008]
[1726132888004,3.3334,134.98,134.95,3.334]
[1726132894010,11.36,135.0,134.94,14.0154]
[1726132894210,11.36,135.0,134.94,1.3583]
[1726132894406,3.334,134.95,134.93,11.36]
[1726132894804,28.9232,135.05,134.91,11.36]
[1726132894805,11.36,134.97,134.91,11.36]
[1726132895013,3.3346,134.93,134.91,11.36]
[1726132895214,3.3346,134.93,134.9,17.4503]
[1726132895506,3.3346,134.93,134.91,6.20145717]
[1726132895717,3.3346,134.93,134.9,17.4503]
[1726132896808,3.3348,134.92,134.9,14.1151]
[1726132897000,3.3348,134.92,134.9,1.4036]
[1726132898908,5.08311467,134.99,134.91,11.36]
[1726132898909,11.36,134.97,134.91,11.36]
[1726132899117,11.36,134.97,134.91,14.6949]
[1726132899305,3.3344,134.94,134.91,11.36]
[1726132903102,3.3346,134.93,134.9,12.7636]
[1726132903312,11.36,134.96,134.9,12.7636]
[1726132904211,3.3347,134.93,134.9,12.7636]
[1726132905519,3.3347,134.93,134.9,16.0988]
[1726132905709,11.36,134.96,134.9,16.0988]
[1726132906206,11.36,134.96,134.9,12.7636]
[1726132907813,3.3347,134.93,134.9,12.7636]
[1726132908514,3.3348,134.92,134.9,12.7636]
[1726132909823,3.3348,134.92,134.89,17.3503]
[1726132910121,3.3348,134.92,134.89,16.0081]
[1726132913427,3.3348,134.92,134.89,14.6955]
[1726132913927,3.335,134.91,134.89,11.36]
[1726132915024,3.335,134.91,134.88,3.3357]
[1726132915428,11.36,134.92,134.87,1.3094]
[1726132915622,11.36,134.93,134.87,1.3094]
[1726132916320,3.3351,134.91,134.88,3.3357]
[1726132916724,3.3351,134.91,134.87,1.3094]
[1726132917222,3.3351,134.91,134.87,4.6452]
[1726132920117,3.3349,134.92,134.87,1.3094]
[1726132920319,11.36,134.96,134.89,11.36]
[1726132920721,3.3347,134.93,134.89,14.6953]
[1726132921435,1.4201,134.99,134.9,3.3352]
[1726132921436,3.3344,134.94,134.9,3.3352]
[1726132921618,3.3344,134.94,134.91,11.36]
[1726132921928,3.3344,134.94,134.91,14.6949]
[1726132922123,11.36,134.97,134.91,14.6949]
[1726132922324,3.3341,134.95,134.91,11.36]
[1726132922833,3.3338,134.96,134.92,11.36]
[1726132923034,11.36,134.99,134.93,15.04772612]
[1726132923224,11.36,134.99,134.93,11.36]
[1726132923424,3.3337,134.97,134.94,3.3341]
[1726132924335,3.3334,134.98,134.95,11.36]
[1726132924629,11.36,135.01,134.95,11.36]
[1726132924821,11.36,134.99,134.93,14.6945]
[1726132925930,3.3339,134.96,134.92,3.3347]
[1726132926133,11.36,134.99,134.92,14.6947]
[1726132927127,3.3339,134.96,134.92,14.6947]
[1726132932228,3.3339,134.96,134.93,11.36]
[1726132935036,3.3336,134.97,134.93,11.36]
[1726132935438,3.3336,134.97,134.93,15.07136257]
[1726132936748,3.3336,134.97,134.94,3.3341]
[1726132937447,3.3335,134.98,134.95,14.694]
[1726132948847,3.3337,134.97,134.94,14.6941]
[1726132950450,11.36,135.01,134.93,3.79556448]
[1726132950451,3.3333,134.99,134.96,11.36]
[1726132950756,2.6451,135.04,134.96,11.36]
[1726132950757,114.56043106,135.02,134.96,11.36]
[1726132952747,3.3333,134.98,134.96,11.36]
[1726132954455,3.3331,134.99,134.96,14.6937]
[1726132954652,3.3331,134.99,134.97,11.36]
[1726132954953,3.3329,135.0,134.97,14.6935]
[1726132957758,3.3329,135.0,134.97,11.36]
[1726132958058,3.3331,134.99,134.96,3.3337]
[1726132958246,3.3331,134.99,134.96,14.6937]
[1726132959955,3.3328,135.0,134.97,14.6935]
[1726132960157,103.20043106,135.02,134.97,11.36]
[1726132960456,103.20043106,135.02,134.99,11.36]
[1726132961760,3.3327,135.01,134.99,11.36]
[1726132966463,3.3327,135.01,134.97,14.6934]
[1726132967153,3.333,135.0,134.96,3.3336]
[1726132967360,3.333,135.0,134.97,11.36]
[1726132970255,3.3331,134.99,134.97,11.36]
[1726132971856,3.3329,135.0,134.97,14.6934]
[1726132972065,103.20043106,135.02,134.98,11.36]
[1726132972463,3.3327,135.01,134.98,14.6932]
[1726132972663,103.20043106,135.02,134.98,14.6932]
[1726132973268,3.3327,135.01,134.98,14.6932]
[1726132980273,3.3328,135.0,134.98,11.36]
[1726132982366,3.3326,135.01,134.98,14.6932]
[1726132982567,3.3326,135.01,134.99,11.36]
[1726132984877,11.36,135.04,134.98,11.36]
[1726132985972,11.36,135.04,134.98,14.6933]
[1726132987277,1.3443,135.06,134.98,14.6933]
[1726132987578,12.50898643,135.05,134.99,11.36]
[1726132987773,11.36,135.05,134.99,11.36]
[1726132988573,1.3443,135.06,134.99,11.36]
[1726132988778,2.738,135.07,135.02,11.36]
[1726132988972,3.3318,135.05,135.02,11.36]
[1726132989372,14.098,135.07,135.01,11.36]
[1726132989674,11.36,135.06,134.95,4.1249]
[1726132989875,11.36,135.06,134.99,11.36]
[1726132990078,3.3326,135.01,134.95,4.1249]
[1726132990380,11.36,135.04,134.98,11.36]
[1726132990780,3.3324,135.02,134.98,14.6931]
[1726132992978,2.738,135.07,134.95,4.1249]
[1726132992979,3.3322,135.03,134.99,14.6929]
[1726132993798,3.3323,135.02,134.99,14.6929]
[1726132994597,11.36,135.05,134.99,11.36]
[1726132996799,3.3324,135.02,134.99,11.36]
[1726132999607,3.3324,135.02,134.99,14.693]
[1726133001308,3.3327,135.01,134.98,14.6932]
[1726133001706,1.3943,135.06,134.97,3.3334]
[1726133001707,3.3328,135.0,134.97,3.3334]
[1726133001897,3.3328,135.0,134.97,14.6934]
[1726133002393,3.3326,135.01,134.97,14.6934]
[1726133004209,3.3328,135.0,134.97,14.6934]
[1726133005301,3.3328,135.0,134.98,3.3333]
[1726133006207,3.3328,135.0,134.99,11.36]
[1726133006405,3.3326,135.01,134.99,11.36]
[1726133010312,3.3328,135.0,134.97,3.3335]
[1726133010517,3.3328,135.0,134.97,14.6935]
[1726133016317,3.3328,135.0,134.98,6.19926332]
[1726133016515,3.3328,135.0,134.97,14.6935]
[1726133016720,3.3328,135.0,134.98,6.19925791]
[1726133016915,3.3328,135.0,134.97,14.6935]
[1726133017221,3.3328,135.0,134.98,6.19925791]
[1726133017415,3.3328,135.0,134.97,14.6935]
[1726133018517,3.3328,135.0,134.98,6.19951314]
[1726133018706,3.3328,135.0,134.97,14.6935]
[1726133018906,3.3328,135.0,134.98,6.19951314]
[1726133019114,3.3328,135.0,134.97,14.6935]
[1726133019312,3.3328,135.0,134.98,6.19957189]
[1726133019515,3.3328,135.0,134.97,14.6935]
[1726133019715,3.3328,135.0,134.98,6.19957189]
[1726133019921,3.3328,135.0,134.97,14.6935]
[1726133020318,3.3328,135.0,134.98,6.19951314]
[1726133020518,3.3328,135.0,134.97,14.6935]
[1726133020716,3.3328,135.0,134.98,6.19951314]
[1726133020914,3.3328,135.0,134.97,14.6935]
[1726133021111,3.3328,135.0,134.98,6.19951314]
[1726133021321,3.3328,135.0,134.97,14.6935]
[1726133021518,3.3328,135.0,134.98,6.19951314]
[1726133021721,3.3328,135.0,134.97,14.6935]
[1726133021927,3.3328,135.0,134.98,6.19951314]
[1726133022125,3.3328,135.0,134.97,14.6935]
[1726133022327,3.3328,135.0,134.98,6.19951314]
[1726133022524,11.36,135.01,134.95,1.3174]
[1726133022723,11.36,135.01,134.96,6.19959021]
[1726133022918,11.36,135.01,134.94,14.6941]
[1726133023226,11.36,135.01,134.95,6.20028346]
[1726133023425,11.36,135.01,134.96,6.20028346]
[1726133023718,11.36,135.01,134.94,14.6941]
[1726133023917,11.36,135.01,134.95,6.2004405]
[1726133024122,3.3334,134.98,134.96,6.2004405]
[1726133024320,3.3334,134.98,134.94,14.6941]
[1726133024523,3.3334,134.98,134.95,9.53443939]
[1726133024724,3.3334,134.98,134.95,3.334]
[1726133029228,3.3335,134.97,134.94,14.6942]
[1726133029534,3.3335,134.97,134.95,6.20043939]
[1726133029734,3.3335,134.97,134.94,14.6942]
[1726133030237,3.3335,134.97,134.95,6.20041468]
[1726133030530,3.3335,134.97,134.94,14.6942]
[1726133030733,3.3335,134.97,134.95,6.20044592]
[1726133030922,3.3335,134.97,134.94,14.6942]
[1726133031123,3.3335,134.97,134.95,6.20044592]
[1726133031324,3.3335,134.97,134.94,14.6942]
[1726133031532,3.3335,134.97,134.95,6.20044592]
[1726133031733,3.3335,134.97,134.94,14.6942]
[1726133031934,3.3335,134.97,134.95,6.20044592]
[1726133032128,3.3335,134.97,134.94,14.6942]
[1726133032335,3.3335,134.97,134.95,6.20044592]
[1726133032528,3.3335,134.98,134.95,3.334]
[1726133032733,1.3683,135.02,134.95,11.36]
[1726133032928,12.7283,135.02,134.95,11.36]
[1726133033135,3.333,135.0,134.96,3.3336]
[1726133033534,12.7283,135.02,134.96,3.3336]
[1726133033740,3.3332,134.99,134.95,14.6939]
[1726133034238,11.36,135.01,134.95,14.6939]
[1726133035138,3.3332,134.99,134.95,14.6939]
[1726133036536,3.3333,134.98,134.95,14.6939]
[1726133037539,3.3331,134.99,134.95,14.6939]
[1726133037732,11.36,135.01,134.95,3.3339]
[1726133038040,11.36,135.01,134.95,14.6939]
[1726133038742,3.3332,134.99,134.95,14.6939]
[1726133045541,11.36,135.01,134.95,11.36]
[1726133046747,3.3334,134.98,134.95,11.36]
[1726133047350,3.3332,134.99,134.95,14.694]
[1726133049557,3.3333,134.98,134.95,14.694]
[1726133053451,11.36,135.0,134.94,1.4212]
[1726133053657,11.36,134.98,134.92,11.36]
[1726133053860,11.36,134.98,134.93,6.20048704]
[1726133054063,3.71580953,135.01,134.91,1.3468]
[1726133054064,11.36,134.97,134.91,1.3468]
[1726133054563,3.3346,134.93,134.91,1.3468]
[1726133055865,3.3344,134.94,134.91,1.3468]
[1726133056459,11.36,134.97,134.91,4.6818]
[1726133056460,3.3341,134.95,134.91,4.6818]
[1726133059870,3.71580953,135.01,134.92,11.36]
[1726133060165,11.36,134.99,134.92,11.36]
[1726133060369,3.3339,134.96,134.93,3.3344]
[1726133060968,3.3336,134.97,134.94,3.3342]
[1726133061173,106.91725877,135.01,134.94,3.3342]
[1726133061356,11.36,135.0,134.94,3.3342]
[1726133061560,3.3334,134.98,134.94,3.3342]
[1726133062370,3.3336,134.97,134.94,3.3342]
[1726133062568,11.36,135.0,134.93,14.6945]
[1726133063762,11.36,134.99,134.93,14.6945]
[1726133063959,11.36,134.99,134.93,11.36]
[1726133064161,11.36,134.99,134.91,2.7103]
[1726133064462,3.3339,134.96,134.92,20.89518747]
[1726133064660,3.3339,134.96,134.92,14.6945]
[1726133065170,3.3339,134.96,134.92,11.36]
[1726133065872,3.3339,134.96,134.93,3.3345]
[1726133066872,3.3336,134.97,134.93,3.3345]
[1726133067274,3.3336,134.97,134.94,14.6941]
[1726133070074,3.3339,134.96,134.93,3.3344]
[1726133077079,3.3334,134.98,134.95,3.334]
[1726133078683,3.3332,134.99,134.96,3.3338]
[1726133078985,103.20144924,135.01,134.95,11.36]
[1726133078986,114.56144924,135.01,134.95,11.36]
[1726133079890,3.3333,134.99,134.95,14.6939]
[1726133080084,114.56144924,135.01,134.95,14.6939]
[1726133080892,3.3335,134.98,134.95,14.6939]
[1726133082092,3.3332,134.99,134.96,3.3337]
[1726133082397,103.20144924,135.01,134.97,11.36]
[1726133082893,106.53414924,135.01,134.98,3.3333]
[1726133083099,106.53414924,135.01,134.98,14.6933]
[1726133083295,3.3323,135.02,134.99,3.3329]
[1726133083591,3.3323,135.02,134.99,14.6929]
[1726133087498,3.3323,135.02,134.99,11.36]
[1726133090395,3.3323,135.02,134.99,14.693]
[1726133090603,11.36,135.06,135.0,11.36]
[1726133090801,1.1492156,135.05,135.0,11.36]
[1726133091103,3.3318,135.04,135.0,14.6926]
[1726133091599,3.3322,135.03,135.0,11.36]
[1726133092202,3.3322,135.03,135.0,14.6927]
[1726133095200,3.3322,135.03,135.0,3.3327]
[1726133095402,3.3322,135.03,135.0,14.6927]
[1726133097304,3.3318,135.04,135.01,3.3325]
[1726133100299,3.332,135.03,135.0,14.6927]
[1726133100502,12.6663,135.07,135.0,14.6927]
[1726133101112,3.3321,135.03,135.0,14.6927]
[1726133101610,3.3321,135.03,135.0,11.36]
[1726133102812,3.3323,135.02,134.99,3.3329]
[1726133103110,3.3323,135.02,134.95,2.8104]
[1726133103111,11.36,135.04,134.95,2.8104]
[1726133103311,3.3329,135.0,134.96,9.97740875]
[1726133103508,3.3329,135.0,134.97,3.3334]
[1726133103704,11.36,135.04,134.96,3.7782396]
[1726133103904,11.36,135.04,134.97,11.36]
[1726133104506,3.3329,135.0,134.97,11.36]
[1726133104709,3.3329,135.0,134.96,3.3335]
[1726133104906,15.14443857,135.02,134.95,14.1704]
[1726133105115,3.3331,134.99,134.95,14.1704]
[1726133105507,3.3331,134.99,134.95,17.5043]
[1726133105934,3.3333,134.98,134.95,14.1704]
[1726133108507,3.3333,134.98,134.95,12.7474]
[1726133109115,3.3336,134.97,134.95,11.36]
[1726133120221,3.3342,134.95,134.92,3.3347]
[1726133120421,3.3342,134.95,134.92,14.6947]
[1726133122214,3.3342,134.95,134.92,3.3347]
[1726133122418,3.3342,134.95,134.92,14.6947]
[1726133123315,3.3339,134.96,134.92,14.6947]
[1726133124320,3.3339,134.96,134.93,6.200521]
[1726133124526,3.3339,134.96,134.92,14.6947]
[1726133124726,3.3339,134.96,134.93,6.200521]
[1726133124927,3.3339,134.96,134.92,14.6947]
[1726133125130,3.3339,134.96,134.93,6.200521]
[1726133125331,3.3339,134.96,134.92,14.6947]
[1726133125631,3.3339,134.96,134.93,6.200521]
[1726133125829,3.3339,134.96,134.92,14.6947]
[1726133126031,3.3339,134.96,134.93,6.200521]
[1726133126226,3.3339,134.96,134.92,14.6947]
[1726133126422,3.3339,134.96,134.93,6.200521]
[1726133126630,3.3339,134.96,134.92,14.6947]
[1726133126832,3.3339,134.96,134.93,6.200521]
[1726133127029,3.3339,134.96,134.92,14.6947]
[1726133127329,3.3339,134.96,134.93,6.20048976]
[1726133127530,3.3339,134.96,134.92,14.6947]
[1726133127731,3.3339,134.96,134.93,6.20048976]
[1726133127930,3.3339,134.96,134.92,14.6947]
[1726133128128,3.3339,134.96,134.93,6.20049087]
[1726133128330,3.3339,134.96,134.92,14.6947]
[1726133128529,3.3339,134.96,134.93,6.20049197]
[1726133128731,3.3339,134.96,134.92,14.6947]
[1726133128935,3.3339,134.96,134.93,6.20051779]
[1726133129134,3.3339,134.96,134.92,14.6947]
[1726133129331,3.3339,134.96,134.93,6.20051779]
[1726133129626,3.3339,134.96,134.93,3.3345]
[1726133132235,3.3339,134.96,134.93,18.3969689]
[1726133132431,3.3339,134.96,134.94,3.3343]
[1726133132938,3.334,134.95,134.92,3.3347]
[1726133134744,11.36,134.96,134.91,2.7744]
[1726133135040,11.36,134.96,134.91,1.4036]
[1726133135735,3.3344,134.94,134.91,4.7385]
[1726133143042,3.3342,134.95,134.92,3.3347]
[1726133143244,1.3985,135.0,134.93,3.66696719]
[1726133143452,3.3338,134.96,134.93,3.3344]
[1726133143647,3.3338,134.96,134.91,14.1515]